bitfinex/quotes_SOLUSD_20240703
["timestamp","ask_amount","ask_price","bid_price","bid_amount"]
[1719970898756,6.5088,153.64,153.56,15.402]
[1719970899759,6.8483,153.65,153.56,15.402]
[1719970899960,0.17,153.64,153.56,15.402]
[1719970900249,6.5088,153.64,153.56,15.402]
[1719970900462,29.2130143,153.68,153.56,15.402]
[1719970900463,6.5079,153.66,153.56,15.402]
[1719970900634,29.6073143,153.68,153.57,6.2182]
[1719970900823,6.5087,153.64,153.57,6.2182]
[1719970901019,16.2691,153.67,153.57,6.2182]
[1719970901251,6.5092,153.63,153.57,6.2182]
[1719970901550,6.5088,153.64,153.57,6.2182]
[1719970901742,6.5081,153.66,153.57,6.2182]
[1719970902659,26.37821941,153.67,153.57,6.2182]
[1719970902833,6.5096,153.62,153.57,6.2182]
[1719970903031,6.5092,153.63,153.57,6.2182]
[1719970904255,6.79821941,153.67,153.57,6.2182]
[1719970904459,6.5086,153.65,153.57,6.2182]
[1719970904639,6.5096,153.62,153.57,6.2182]
[1719970904834,22.81,153.63,153.57,6.2182]
[1719970905538,22.81,153.63,153.56,15.402]
[1719970905744,6.5105,153.6,153.56,15.402]
[1719970905944,6.51,153.61,153.56,15.402]
[1719970906342,6.8495,153.62,153.56,15.402]
[1719970906541,6.51,153.61,153.56,15.402]
[1719970909841,11.43,153.57,153.56,15.402]
[1719970911440,6.5092,153.63,153.56,15.402]
[1719970911763,11.43,153.59,153.56,15.402]
[1719970912738,6.5097,153.62,153.56,15.402]
[1719970912968,0.17,153.64,153.56,15.402]
[1719970912969,11.43,153.59,153.56,15.402]
[1719970913260,11.43,153.57,153.56,15.402]
[1719970913844,11.43,153.58,153.56,15.402]
[1719970914956,6.8002779,153.66,153.59,15.7641]
[1719970915136,11.43,153.67,153.62,11.43]
[1719970915338,11.43,153.68,153.63,11.43]
[1719970915535,6.5062,153.7,153.63,11.43]
[1719970915740,11.43,153.68,153.63,11.43]
[1719970916451,13.30097991,153.72,153.63,11.43]
[1719970916641,11.43,153.7,153.65,26.6202]
[1719970917861,6.5053,153.72,153.65,15.1902]
[1719970919243,6.5058,153.71,153.65,15.1902]
[1719970922454,22.82,153.72,153.61,21.9912]
[1719970922665,6.5066,153.69,153.61,21.9912]
[1719970923062,6.5062,153.7,153.61,21.9912]
[1719970923263,22.82,153.72,153.61,21.9912]
[1719970923547,6.5073,153.68,153.61,21.9912]
[1719970925047,6.5066,153.69,153.61,21.9912]
[1719970926272,22.82,153.72,153.61,21.9912]
[1719970926572,0.17,153.73,153.62,0.17]
[1719970926774,6.79462704,153.74,153.62,0.34]
[1719970926947,6.5056,153.72,153.62,0.34]
[1719970927971,6.5058,153.71,153.62,0.34]
[1719970928971,23.05642704,153.74,153.61,21.9912]
[1719970929157,0.34,153.73,153.61,21.9912]
[1719970929360,6.5062,153.7,153.61,21.9912]
[1719970929665,6.5059,153.71,153.61,21.9912]
[1719970929846,6.5059,153.71,153.62,0.34]
[1719970930049,6.5062,153.7,153.62,0.34]
[1719970930282,6.5055,153.72,153.62,0.17]
[1719970930480,6.79478815,153.73,153.65,21.6585]
[1719970930691,6.5011,153.82,153.68,22.82]
[1719970930979,16.2506,153.85,153.71,22.82]
[1719970930980,6.4998,153.85,153.71,22.82]
[1719970931163,6.4998,153.85,153.72,20.34]
[1719970931358,6.4998,153.85,153.72,0.34]
[1719970931586,6.78883742,153.87,153.72,20.34]
[1719970931780,29.60883742,153.87,153.74,15.0316]
[1719970932077,6.4999,153.85,153.75,0.34]
[1719970932252,6.4999,153.85,153.75,0.17]
[1719970932977,6.4999,153.85,153.75,0.81593404]
[1719970933764,6.6694,153.86,153.75,0.81593404]
[1719970934987,0.17,153.86,153.75,0.17]
[1719970935360,6.5003,153.84,153.75,0.17]
[1719970935678,6.6698,153.86,153.75,0.17]
[1719970935855,6.4998,153.86,153.75,0.34]
[1719970936977,6.5004,153.84,153.75,0.34]
[1719970937375,6.5004,153.84,153.75,0.17]
[1719970939984,6.4999,153.85,153.75,0.17]
[1719970940654,6.4994,153.86,153.75,0.17]
[1719970940882,6.4994,153.86,153.75,0.34]
[1719970942289,29.94883742,153.87,153.75,0.34]
[1719970942479,0.34,153.86,153.75,0.34]
[1719970942680,13.28803742,153.87,153.75,0.34]
[1719970942884,6.4994,153.86,153.75,0.34]
[1719970943085,13.28793742,153.87,153.75,0.34]
[1719970943678,6.4995,153.86,153.75,0.34]
[1719970945667,6.78883742,153.87,153.75,0.34]
[1719970946798,6.5004,153.84,153.75,0.34]
[1719970948696,22.82,153.85,153.74,15.0316]
[1719970948877,6.5011,153.82,153.74,15.0316]
[1719970949076,6.78885709,153.83,153.74,15.0316]
[1719970950776,13.28965709,153.83,153.74,15.0316]
[1719970951882,11.39,153.8,153.75,11.39]
[1719970952572,6.5011,153.82,153.74,15.0316]
[1719970952905,11.39,153.79,153.75,11.39]
[1719970953102,11.39,153.79,153.74,15.0316]
[1719970953268,11.39,153.79,153.75,11.39]
[1719970953899,6.5019,153.8,153.74,15.0316]
[1719970954193,11.39,153.78,153.74,15.0316]
[1719970955270,11.39,153.75,153.74,15.0316]
[1719970957692,11.39,153.75,153.73,6.6269]
[1719970957874,6.5013,153.82,153.73,6.6269]
[1719970958272,11.39,153.78,153.73,6.6269]
[1719970958497,11.39,153.78,153.73,18.0169]
[1719970958706,6.5013,153.82,153.73,18.0169]
[1719970958878,11.39,153.78,153.73,18.0169]
[1719970959776,6.5016,153.81,153.73,6.6269]
[1719970959970,29.57885709,153.83,153.73,6.6269]
[1719970960171,6.5019,153.8,153.73,6.6269]
[1719970961604,6.5024,153.79,153.73,6.6269]
[1719970962473,29.292,153.8,153.73,6.6269]
[1719970963671,22.79,153.8,153.74,0.62811402]
[1719970964091,6.5015,153.81,153.73,6.6269]
[1719970964605,6.5015,153.81,153.74,1.30069162]
[1719970965120,6.5019,153.8,153.74,1.30069162]
[1719970966803,6.5019,153.8,153.73,6.6269]
[1719970967115,6.5024,153.79,153.73,6.6269]
[1719970968116,6.502,153.8,153.74,1.07388108]
[1719970969117,6.502,153.8,153.73,6.6269]
[1719970969707,29.57885709,153.83,153.73,6.6269]
[1719970970017,6.5007,153.83,153.75,15.9116]
[1719970970196,22.79,153.86,153.75,15.9116]
[1719970970197,6.5011,153.82,153.75,15.9116]
[1719970970787,6.5006,153.83,153.75,15.9116]
[1719970971200,6.5011,153.82,153.75,15.9116]
[1719970971402,6.5015,153.81,153.75,15.9116]
[1719970974117,6.5019,153.8,153.75,15.9116]
[1719970975616,6.5024,153.79,153.75,15.9116]
[1719970975819,22.79,153.83,153.75,15.9116]
[1719970976006,0.17,153.82,153.75,15.9116]
[1719970976724,6.502,153.8,153.75,15.9116]
[1719970979005,6.5016,153.81,153.75,15.9116]
[1719970979416,6.502,153.8,153.75,15.9116]
[1719970979720,11.4,153.76,153.71,15.0006]
[1719970979894,11.4,153.74,153.71,15.0006]
[1719970981502,11.4,153.73,153.71,15.0006]
[1719970982292,11.4,153.74,153.71,15.0006]
[1719970983919,6.79159645,153.8,153.67,16.2433]
[1719970984114,11.4,153.71,153.67,16.2433]
[1719970984315,11.4,153.7,153.67,16.2433]
[1719970984502,11.4,153.69,153.67,16.2433]
[1719970985398,11.4,153.7,153.67,16.2433]
[1719970985911,11.4,153.71,153.67,16.2433]
[1719970988319,11.4,153.7,153.67,16.2433]
[1719970988614,6.5036,153.77,153.67,27.6433]
[1719970988817,11.4,153.73,153.69,11.4]
[1719970989122,11.4,153.74,153.69,11.4]
[1719970989825,6.5037,153.76,153.67,16.2433]
[1719970990155,6.5041,153.75,153.67,16.2433]
[1719970991928,6.5036,153.76,153.67,16.2433]
[1719970992128,22.81,153.79,153.68,6.4204]
[1719970992316,22.81,153.79,153.69,0.98512328]
[1719970992827,16.2572,153.78,153.69,0.64512328]
[1719970993028,6.5048,153.74,153.68,6.4204]
[1719970993524,39.0697,153.76,153.67,16.2433]
[1719970993729,6.5054,153.72,153.67,16.2433]
[1719970994834,22.81,153.73,153.67,16.2433]
[1719970995824,6.8441,153.75,153.67,16.2433]
[1719970996032,22.81,153.75,153.67,16.2433]
[1719970996829,6.79339182,153.77,153.68,0.17]
[1719970997133,22.81,153.78,153.69,6.2405]
[1719970997134,29.3128,153.78,153.69,6.2405]
[1719970997521,6.5032,153.77,153.69,6.2405]
[1719970997720,6.5036,153.76,153.69,6.2405]
[1719970998720,6.504,153.75,153.69,6.2405]
[1719970999123,6.5037,153.76,153.69,6.2405]
[1719970999833,6.5033,153.77,153.69,6.2405]
[1719971000215,23.20761303,153.81,153.69,6.2405]
[1719971000444,6.5027,153.79,153.69,6.2405]
[1719971001310,6.5027,153.79,153.7,0.17]
[1719971001744,6.5028,153.78,153.7,0.17]
[1719971004055,22.81,153.8,153.7,0.17]
[1719971004223,0.34,153.79,153.69,6.2405]
[1719971004423,6.5042,153.75,153.69,6.2405]
[1719971004844,6.5037,153.76,153.69,6.2405]
[1719971005540,6.5031,153.78,153.69,6.2405]
[1719971006450,6.5032,153.77,153.69,6.2405]
[1719971006650,6.5036,153.76,153.69,6.2405]
[1719971007324,6.504,153.75,153.69,6.2405]
[1719971007928,29.3136,153.77,153.69,6.2405]
[1719971008447,13.29649342,153.79,153.7,0.17]
[1719971009232,13.29649342,153.79,153.7,0.34]
[1719971010250,6.79409342,153.79,153.7,0.34]
[1719971010440,6.5016,153.81,153.71,15.3679]
[1719971010640,6.5016,153.81,153.72,0.17]
[1719971010837,6.5012,153.82,153.72,0.34]
[1719971011049,6.5012,153.82,153.73,6.2496]
[1719971011353,6.5015,153.81,153.73,6.2496]
[1719971011542,6.502,153.8,153.73,6.2496]
[1719971012730,6.5024,153.79,153.73,6.2496]
[1719971013042,6.502,153.8,153.73,6.2496]
[1719971014450,39.0623,153.83,153.73,6.2496]
[1719971014749,0.17,153.82,153.73,6.2496]
[1719971014956,22.81,153.8,153.73,6.2496]
[1719971015827,6.5028,153.78,153.73,6.2496]
[1719971016156,6.5024,153.79,153.73,6.2496]
[1719971019045,29.312,153.8,153.73,6.2496]
[1719971019349,6.502,153.8,153.73,6.2496]
[1719971020190,22.81,153.83,153.73,6.2496]
[1719971020363,29.311,153.83,153.73,6.2496]
[1719971020857,6.5016,153.81,153.73,6.2496]
[1719971022456,6.5012,153.82,153.73,6.2496]
[1719971024967,6.5015,153.81,153.73,6.2496]
[1719971025950,6.5011,153.82,153.73,6.2496]
[1719971026564,6.5011,153.82,153.74,0.17]
[1719971026765,6.79087734,153.84,153.75,16.2885]
[1719971026974,22.81,153.88,153.76,0.17]
[1719971027171,6.4997,153.86,153.77,6.6077]
[1719971027763,11.39,153.83,153.78,11.39]
[1719971027977,6.4997,153.86,153.78,11.39]
[1719971028148,11.39,153.83,153.78,11.39]
[1719971028550,6.4998,153.85,153.78,11.39]
[1719971028867,11.39,153.83,153.78,11.39]
[1719971029045,11.39,153.84,153.79,11.39]
[1719971029647,6.4995,153.86,153.79,11.39]
[1719971029848,6.4995,153.86,153.77,6.6077]
[1719971030048,6.4995,153.86,153.78,0.34]
[1719971033669,62.2877089,153.89,153.78,0.34]
[1719971033670,6.4998,153.85,153.78,0.34]
[1719971035578,29.5687089,153.89,153.79,15.8485]
[1719971035747,6.4989,153.87,153.8,0.34]
[1719971036377,6.4986,153.88,153.8,0.34]
[1719971036555,6.4989,153.87,153.8,0.34]
[1719971037261,6.4986,153.88,153.8,0.34]
[1719971038979,16.2449,153.9,153.8,0.17]
[1719971039179,6.4998,153.85,153.79,15.8485]
[1719971039781,6.4995,153.86,153.79,15.8485]
[1719971040649,6.4998,153.85,153.79,15.8485]
[1719971041276,6.4994,153.86,153.79,15.8485]
[1719971041684,6.5002,153.85,153.79,15.8485]
[1719971044878,6.4995,153.86,153.79,15.8485]
[1719971045952,22.78,153.86,153.77,6.6077]
[1719971046355,6.5001,153.85,153.77,6.6077]
[1719971047682,6.5002,153.84,153.77,6.6077]
[1719971049189,29.2796,153.86,153.77,6.6077]
[1719971050559,6.4998,153.85,153.77,6.6077]
[1719971051888,11.39,153.81,153.77,6.6077]
[1719971052785,6.5002,153.84,153.77,6.6077]
[1719971052991,11.39,153.8,153.77,6.6077]
[1719971053359,6.5002,153.84,153.77,6.6077]
[1719971053557,11.39,153.8,153.77,6.6077]
[1719971054673,11.39,153.78,153.76,15.8403]
[1719971054863,11.39,153.77,153.76,15.8403]
[1719971057676,11.39,153.77,153.73,6.6249]
[1719971057996,11.39,153.75,153.73,6.6249]
[1719971058496,6.79116445,153.83,153.73,6.6249]
[1719971058676,6.5019,153.81,153.73,6.6249]
[1719971058984,11.39,153.76,153.73,6.6249]
[1719971060089,13.29206445,153.83,153.73,18.0149]
[1719971060393,11.39,153.78,153.73,18.0149]
[1719971061379,6.5012,153.82,153.73,18.0149]
[1719971061579,11.39,153.78,153.73,18.0149]
[1719971061781,11.39,153.78,153.74,11.39]
[1719971063672,11.39,153.78,153.73,18.0149]
[1719971064001,6.5015,153.81,153.73,18.0149]
[1719971064201,11.39,153.78,153.73,18.0149]
[1719971066586,6.5015,153.81,153.73,18.0149]
[1719971066783,11.39,153.78,153.73,18.0149]
[1719971067686,6.78074911,153.85,153.74,16.2114]
[1719971067997,11.39,153.84,153.79,11.39]
[1719971068295,11.39,153.84,153.8,1.30017607]
[1719971068499,6.4991,153.87,153.8,1.30017607]
[1719971068797,11.39,153.84,153.8,1.30017607]
[1719971070489,11.39,153.84,153.79,17.7319]
[1719971070884,11.39,153.83,153.79,17.7319]
[1719971071193,6.4999,153.85,153.79,6.3419]
[1719971071491,11.39,153.83,153.79,6.3419]
[1719971072591,11.39,153.84,153.79,17.7319]
[1719971077289,6.78650829,153.88,153.75,20.17]
[1719971077290,11.39,153.82,153.75,26.5149]
[1719971077499,11.39,153.81,153.76,11.39]
[1719971078174,11.39,153.83,153.78,11.39]
[1719971078379,6.4997,153.86,153.78,11.39]
[1719971078591,11.39,153.84,153.79,11.39]
[1719971079201,11.39,153.83,153.78,11.39]
[1719971080389,6.4995,153.86,153.79,11.39]
[1719971080589,11.39,153.83,153.79,11.39]
[1719971080800,11.39,153.84,153.79,11.39]
[1719971081406,6.4995,153.86,153.79,11.39]
[1719971081608,11.39,153.84,153.79,11.39]
[1719971082204,6.4998,153.85,153.79,11.39]
[1719971082507,11.39,153.84,153.79,11.39]
[1719971086319,11.39,153.84,153.75,26.5149]
[1719971086626,6.4998,153.85,153.79,11.39]
[1719971086811,11.39,153.84,153.79,11.39]
[1719971090308,6.4993,153.87,153.79,11.39]
[1719971090515,11.39,153.85,153.8,11.39]
[1719971092419,11.39,153.84,153.79,11.39]
[1719971094493,17.8904,153.84,153.76,1.47020264]
[1719971094694,11.39,153.82,153.76,0.17]
[1719971095011,11.39,153.82,153.77,11.39]
[1719971095321,11.39,153.81,153.75,6.5149]
[1719971095613,11.39,153.81,153.76,11.39]
[1719971097392,11.39,153.82,153.77,11.39]
[1719971097818,11.39,153.83,153.78,11.39]
[1719971098823,11.39,153.83,153.75,6.5149]
[1719971099031,11.39,153.84,153.75,6.3449]
[1719971099198,11.39,153.79,153.74,16.2114]
[1719971099525,11.39,153.76,153.71,17.6921]
[1719971099828,16.2815,153.81,153.71,17.6921]
[1719971099829,11.39,153.77,153.72,11.39]
[1719971100203,11.39,153.78,153.73,11.39]
[1719971100720,11.39,153.77,153.71,6.3021]
[1719971100898,11.39,153.77,153.72,11.39]
[1719971101509,11.39,153.77,153.73,11.39]
[1719971103126,11.39,153.78,153.73,11.39]
[1719971103321,16.2815,153.81,153.73,11.39]
[1719971103622,11.39,153.78,153.73,11.39]
[1719971104129,22.783,153.81,153.7,16.028]
[1719971104130,11.39,153.74,153.7,16.028]
[1719971104326,0.34,153.8,153.7,16.028]
[1719971104623,11.39,153.76,153.71,11.39]
[1719971107327,45.56,153.84,153.74,11.39]
[1719971107635,11.39,153.79,153.75,11.39]
[1719971107937,15.6346,153.85,153.75,11.39]
[1719971108227,6.5009,153.83,153.75,11.39]
[1719971108532,11.39,153.79,153.75,11.39]
[1719971108933,11.39,153.8,153.75,11.39]
[1719971111431,6.5007,153.83,153.75,11.39]
[1719971111606,11.39,153.8,153.75,11.39]
[1719971112013,11.39,153.81,153.73,6.04]
[1719971112236,11.39,153.81,153.76,11.39]
[1719971112534,11.39,153.8,153.74,0.34]
[1719971112835,11.39,153.8,153.75,11.39]
[1719971113412,11.39,153.79,153.73,6.04]
[1719971113616,11.39,153.79,153.74,11.39]
[1719971113814,6.5014,153.82,153.75,11.39]
[1719971114015,11.39,153.8,153.75,11.39]
[1719971115237,28.92107485,153.85,153.77,11.39]
[1719971115533,11.39,153.83,153.78,11.39]
[1719971115947,28.92107485,153.85,153.77,11.39]
[1719971115948,11.39,153.82,153.77,11.39]
[1719971116106,11.39,153.82,153.76,27.172]
[1719971118235,11.39,153.82,153.77,11.39]
[1719971119312,11.39,153.82,153.76,15.782]
[1719971119313,11.39,153.81,153.76,15.782]
[1719971119518,11.39,153.8,153.76,15.782]
[1719971119714,11.39,153.8,153.73,6.04]
[1719971120020,11.39,153.8,153.75,11.39]
[1719971120265,6.5007,153.83,153.76,11.39]
[1719971120539,11.39,153.81,153.76,11.39]
[1719971120946,11.39,153.82,153.77,11.39]
[1719971121119,6.5003,153.84,153.77,11.39]
[1719971121444,11.39,153.82,153.77,11.39]
[1719971121632,11.39,153.83,153.78,11.39]
[1719971122345,11.39,153.82,153.77,11.39]
[1719971124956,6.5003,153.84,153.77,11.39]
[1719971125278,11.39,153.82,153.77,11.39]
[1719971126026,11.39,153.83,153.78,11.39]
[1719971126851,6.5003,153.84,153.78,11.39]
[1719971127059,22.42097485,153.85,153.79,11.39]
[1719971127345,18.17637485,153.85,153.79,11.39]
[1719971129348,24.67617485,153.85,153.79,11.39]
[1719971129854,11.39,153.84,153.79,11.39]
[1719971132364,17.8903,153.84,153.79,11.39]
[1719971133035,11.39,153.84,153.79,11.39]
[1719971134647,11.39,153.83,153.77,16.4513]
[1719971134848,11.39,153.83,153.78,11.39]
[1719971143144,6.4999,153.85,153.78,11.39]
[1719971143352,11.39,153.83,153.78,11.39]
[1719971143941,6.7878332,153.88,153.74,0.17]
[1719971143942,11.39,153.82,153.74,0.17]
[1719971144170,11.39,153.81,153.76,11.39]
[1719971144870,11.39,153.82,153.77,11.39]
[1719971145850,11.39,153.83,153.78,11.39]
[1719971146868,11.39,153.83,153.74,0.34]
[1719971146869,11.39,153.84,153.79,12.62524217]
[1719971147044,11.39,153.84,153.79,11.39]
[1719971149955,13.28666003,153.86,153.79,11.39]
[1719971150180,11.39,153.84,153.79,11.39]
[1719971150471,11.39,153.83,153.78,11.39]
[1719971152073,11.39,153.84,153.79,11.39]
[1719971152463,13.28666003,153.86,153.79,11.39]
[1719971152673,6.78716003,153.86,153.82,11.39]
[1719971152876,11.39,153.87,153.82,11.39]
[1719971154677,11.39,153.87,153.81,11.39]
[1719971154878,11.39,153.86,153.81,11.39]
[1719971155450,11.39,153.87,153.81,11.39]
[1719971155656,11.39,153.87,153.82,11.39]
[1719971156566,29.74956357,153.89,153.82,11.39]
[1719971156759,11.39,153.87,153.82,11.39]
[1719971156952,11.39,153.87,153.79,16.3729]
[1719971156953,23.25136357,153.89,153.83,11.39]
[1719971157257,11.39,153.88,153.83,11.39]
[1719971157661,11.39,153.88,153.79,16.3729]
[1719971157867,11.39,153.85,153.8,11.39]
[1719971158187,11.39,153.86,153.79,16.3729]
[1719971158353,11.39,153.86,153.81,11.39]
[1719971159161,11.39,153.86,153.82,11.39]
[1719971159364,29.74956357,153.89,153.82,11.39]
[1719971159565,11.39,153.87,153.82,11.39]
[1719971159960,11.39,153.87,153.83,11.39]
[1719971160274,11.39,153.88,153.83,11.39]
[1719971160969,26.0709,153.93,153.84,11.39]
[1719971160970,6.4976,153.91,153.84,11.39]
[1719971161173,11.39,153.89,153.84,11.39]
[1719971161854,6.4978,153.9,153.84,11.39]
[1719971162054,11.39,153.89,153.84,11.39]
[1719971162284,13.27999453,153.91,153.84,11.39]
[1719971162487,11.39,153.89,153.84,11.39]
[1719971164259,6.4977,153.9,153.84,11.39]
[1719971164465,6.4977,153.9,153.83,11.39]
[1719971166681,6.4983,153.89,153.79,16.3729]
[1719971166981,11.39,153.86,153.79,16.3729]
[1719971167185,6.5003,153.84,153.79,16.3729]
[1719971167392,11.39,153.81,153.76,11.39]
[1719971167958,16.3097,153.87,153.75,16.1274]
[1719971167959,11.39,153.8,153.75,16.1274]
[1719971168194,11.39,153.8,153.76,11.39]
[1719971168868,11.39,153.8,153.75,16.1274]
[1719971169067,11.39,153.8,153.75,27.5174]
[1719971170381,11.39,153.77,153.72,11.39]
[1719971171588,6.5019,153.81,153.71,15.6677]
[1719971171589,6.5021,153.8,153.71,15.6677]
[1719971171793,11.39,153.75,153.7,17.5887]
[1719971173066,22.42657172,153.81,153.7,6.1987]
[1719971173266,11.39,153.78,153.74,11.39]
[1719971173690,6.78033201,153.83,153.75,11.39]
[1719971173992,6.78033201,153.83,153.76,11.39]
[1719971174295,11.39,153.82,153.77,11.39]
[1719971175308,11.39,153.81,153.76,11.39]
[1719971177376,11.39,153.8,153.75,11.39]
[1719971177794,6.5015,153.81,153.71,16.6076]
[1719971177991,11.39,153.79,153.74,11.39]
[1719971180090,11.39,153.76,153.71,27.9976]
[1719971181280,11.39,153.77,153.72,11.39]
[1719971181969,11.39,153.77,153.71,16.6076]
[1719971182170,11.39,153.75,153.71,16.6076]
[1719971182402,11.39,153.76,153.71,27.9976]
[1719971183892,16.2066,153.79,153.67,15.8883]
[1719971184085,11.39,153.73,153.68,11.73]
[1719971184287,11.39,153.72,153.67,27.2783]
[1719971184487,22.78,153.68,153.64,16.2545]
[1719971184793,11.39,153.65,153.61,22.3963]
[1719971184995,11.39,153.63,153.57,22.3963]
[1719971185385,11.39,153.63,153.59,11.39]
[1719971185686,6.5067,153.69,153.59,11.39]
[1719971185893,29.3467,153.69,153.57,22.3963]
[1719971186071,22.84,153.69,153.57,22.3963]
[1719971186272,29.3466,153.69,153.57,22.3963]
[1719971186472,22.84,153.69,153.57,22.3963]
[1719971187291,6.5079,153.66,153.57,22.3963]
[1719971187898,6.5075,153.67,153.57,22.3963]
[1719971188100,6.508,153.66,153.57,22.3963]
[1719971188800,6.5079,153.66,153.57,22.3963]
[1719971189399,6.5075,153.67,153.57,22.3963]
[1719971190304,6.5075,153.67,153.58,0.34]
[1719971191501,6.5079,153.66,153.58,0.17]
[1719971191698,6.5079,153.66,153.57,22.3963]
[1719971191927,29.3479,153.66,153.57,22.3963]
[1719971192212,6.5087,153.64,153.56,0.17]
[1719971192398,6.5087,153.64,153.53,27.60862593]
[1719971192594,6.5087,153.64,153.54,0.34]
[1719971193412,23.0529,153.65,153.54,20.34]
[1719971193593,16.5445,153.65,153.54,0.34]
[1719971194119,16.5445,153.65,153.53,27.60862593]
[1719971194120,22.84,153.63,153.53,22.3202]
[1719971194299,6.5105,153.6,153.53,22.3202]
[1719971194994,6.5101,153.61,153.53,22.3202]
[1719971195389,29.61676397,153.63,153.53,22.3202]
[1719971195390,6.5105,153.6,153.53,22.3202]
[1719971195589,49.17676397,153.63,153.53,22.3202]
[1719971195590,6.5101,153.61,153.53,22.3202]
[1719971196001,6.5096,153.62,153.53,22.3202]
[1719971196798,6.5101,153.61,153.53,22.3202]
[1719971197002,22.84,153.57,153.5,0.8283643]
[1719971197689,6.5122,153.56,153.5,0.8283643]
[1719971198113,22.84,153.57,153.5,0.8283643]
[1719971198114,6.5142,153.51,153.5,0.8283643]
[1719971198712,22.84,153.54,153.5,0.8283643]
[1719971198906,6.5142,153.51,153.5,0.8283643]
[1719971199794,29.3542,153.51,153.5,0.8283643]
[1719971200398,45.6397,153.51,153.5,0.8283643]
[1719971200594,6.5165,153.46,153.38,6.5592]
[1719971200796,22.84,153.48,153.38,6.5592]
[1719971201110,6.5159,153.47,153.38,6.5592]
[1719971201310,32.5591,153.51,153.38,6.5592]
[1719971201513,22.84,153.49,153.38,6.5592]
[1719971201821,6.5159,153.48,153.38,6.5592]
[1719971202225,22.84,153.49,153.38,6.5592]
[1719971203129,6.5176,153.43,153.34,0.8283643]
[1719971203700,15.1136,153.42,153.34,0.8283643]
[1719971204006,22.84,153.43,153.34,0.8283643]
[1719971204219,6.5181,153.42,153.34,0.8283643]
[1719971204804,29.3577,153.43,153.34,0.8283643]
[1719971205608,6.5182,153.42,153.35,0.34]
[1719971205807,22.84,153.43,153.34,0.8283643]
[1719971206015,6.519,153.4,153.34,0.8283643]
[1719971206216,6.5198,153.38,153.34,0.8283643]
[1719971206519,39.1342,153.43,153.34,0.8283643]
[1719971206730,6.5197,153.39,153.34,0.8283643]
[1719971207220,6.5199,153.38,153.34,0.8283643]
[1719971207438,6.5205,153.37,153.34,0.8283643]
[1719971207607,6.5201,153.38,153.34,0.8283643]
[1719971208125,30.00052833,153.46,153.34,0.8283643]
[1719971208306,22.84,153.43,153.34,0.8283643]
[1719971208716,6.5205,153.37,153.34,0.8283643]
[1719971209007,16.2964,153.41,153.34,0.8283643]
[1719971209204,22.84,153.4,153.34,0.8283643]
[1719971209606,6.5198,153.38,153.34,0.8283643]